[Event "Romanian Championship 2024"]
[Site "Eforie Nord"]
[Date "2024.02.24"]
[Round "1.6"]
[White "Mintau, Andrei-Catalin"]
[Black "Bulmaga, Irina"]
[Result "0-1"]
[ECO "B90"]
[WhiteElo "2039"]
[BlackElo "2439"]
[Annotator "TA"]
[PlyCount "106"]
[EventDate "2024.02.24"]
[EventType "swiss"]
[EventCountry "ROU"]
[SourceTitle "playchess.com"]
[Source "ChessBase"]
[SourceQuality "1"]
[TimeControl "40/5400+30:900+30"]

{[%evp 15,106,10,9,19,26,0,8,21,18,12,12,22,8,29,24,0,47,-40,-43,-44,-8,-3,-6,-22,22,20,8,-25,-29,-27,-32,-16,-30,-43,-29,-50,-46,-53,-33,-52,0,0,0,0,0,0,0,0,0,0,0,-73,0,-8,-10,-36,-8,-148,-114,-94,-14,-14,-14,-16,0,-14,-14,-14,-14,-13,-15,-15,0,0,0,0,0,0,0,0,0,0,0,0,0,-29982,-29983,-29983,-29984,-29984,-29985,-29985,-29986]} 1. e4 {[%emt 0:00:04]} c5 {[%emt 0:00:08]} 2. Nf3 {[%emt 0:00:03]} d6 {[%emt 0:00:22]} 3. d4 {[%emt 0:00:03]} cxd4 {[%emt 0:00:07]} 4. Nxd4 {[%emt 0:00:04]} Nf6 {[%emt 0:00:07]} 5. Nc3 {[%emt 0:00:03]} a6 {[%emt 0:00:27]} 6. a4 {[%emt 0:00:26]} e5 {[%emt 0:00:28]} 7. Nf3 {[%emt 0:00:08]} h6 {[%emt 0:00:55]} 8. Bc4 {[%emt 0:02:11]} Be7 {[%emt 0:01:11]} 9. O-O {[%emt 0:01:03]} Be6 {[%emt 0:03:02]} 10. Qe2 {[%emt 0:05:20]} O-O {[%emt 0:01:37]} 11. Rd1 {[%emt 0:01:13] Bxe6 would now be deadly. The position is equal.} Qc7 {[%emt 0:00:39]} 12. Ba2 {[%emt 0:12:58]} Rc8 {[%emt 0:12:50]} 13. Be3 {[%emt 0:27:16]} Bxa2 {[%emt 0:23:06]} 14. Rxa2 {[%emt 0:00:11]} Nc6 {[%emt 0:00:59]} 15. Nh4 {[%emt 0:21:45]} g6 {[%emt 0:20:07] Prevents Nf5.} (15... Nxe4 $11 16. Nxe4 Bxh4 (16... Nb4 $2 17. Nf5 $18)) 16. Bxh6 {[%emt 0:21:41]} (16. Nf3 $14) 16... Nd4 $15 {[%emt 0:00:55]} 17. Qd2 {[%emt 0:00:03][%cal Oh4f5] [#]} Nxe4 $1 {[%emt 0:06:44]} 18. Nxe4 {[%emt 0:00:07][%cal Oc2c3]} Bxh4 {[%emt 0:00:11]} 19. c3 {[%emt 0:00:10]} Nf5 {[%emt 0:06:25]} 20. Bg5 {[%emt 0:01:04] Hoping for g4.} (20. Nxd6 $2 Rd8 21. Qc1 Rxd6 $19) 20... Qc4 {[%emt 0:03:06]} 21. Qd5 {[%emt 0:00:45]} (21. Nxd6 $2 Nxd6 (21... Qxa2 $2 22. Nxf5 Rd8 23. Bxd8 $19) 22. Bxh4 Nf5 $19 (22... Qxa2 $2 23. Qxd6 Qxb2 24. Bf6 $19)) (21. Nf6+ {seems wilder.} Kg7 22. Ra3 Bxg5 23. Qxg5 Qe6 24. Nd5) 21... Bxg5 {[%emt 0:04:26]} (21... Qxd5 {simplifies} 22. Rxd5 Bxg5 23. Nxg5 Rc6) 22. Nxg5 {[%emt 0:00:06]} Qxd5 {[%emt 0:03:39]} 23. Rxd5 {[%emt 0:00:02]} Rc6 {[%emt 0:00:46]} 24. Ne4 {[%emt 0:03:23]} Rd8 {[%emt 0:00:19]} 25. b4 {[%emt 0:00:59]} Ne7 {[%emt 0:02:33]} 26. Rd3 {[%emt 0:00:16]} f5 {[%emt 0:00:47]} 27. Nc5 {[%emt 0:00:46]} Rb8 {[%emt 0:00:40]} (27... e4 $15 28. Rd1 Rb8) 28. Nd7 $11 {[%emt 0:00:11]} Rbc8 {[%emt 0:00:25]} 29. Rad2 {[%emt 0:00:07]} Rxc3 {[%emt 0:03:02]} 30. Rxd6 {[%emt 0:00:03]} Rc1+ {[%emt 0:01:23]} 31. Rd1 {[%emt 0:00:01]} Rxd1+ {[%emt 0:02:25]} 32. Rxd1 {[%emt 0:00:01][%mdl 4096] Endgame. KRN-KRN} e4 {[%emt 0:00:42]} 33. Nc5 {[%emt 0:01:33]} (33. Ne5 $11) 33... Rc7 {[%emt 0:00:30]} (33... a5 $1 $17 {[%cal Ra5b4]} 34. Nxb7 axb4) 34. g3 {[%emt 0:01:28]} Kf7 {[%emt 0:00:05][%cal Oa6a5]} 35. Rd6 {[%emt 0:00:51]} Nc6 {[%emt 0:02:02]} 36. Nxb7 {[%emt 0:00:42]} Nxb4 $1 $17 {[%emt 0:00:17]} 37. Rb6 {[%emt 0:00:02]} Nd5 {[%emt 0:00:41]} (37... Nd3 $17 {Threatens to win with ...Ke7.} 38. h4 Rc1+ 39. Kg2 Rc2) 38. Nd6+ $11 {[%emt 0:00:03]} Ke7 {[%emt 0:00:42]} 39. Rxa6 {[%emt 0:00:01]} Rc1+ {[%emt 0:00:36]} (39... Nb4 $5 40. Rb6 $8 Rc1+ 41. Kg2 Nd5 $15) 40. Kg2 {[%emt 0:00:00]} Rc2 {[%emt 0:00:00][%mdl 1024] White must now prevent ...Ne3+. Black has compensation.} 41. Kg1 $1 {[%emt 0:08:32]} Nb4 {[%emt 0:03:47]} 42. Rb6 {[%emt 0:00:11] aiming for Nxf5+.} Nd3 {[%emt 0:00:25]} 43. a5 {[%emt 0:03:57]} Rc1+ {[%emt 0:00:34]} 44. Kg2 {[%emt 0:00:09]} Ne1+ {[%emt 0:00:07]} 45. Kh3 {[%emt 0:00:58]} Nf3 {[%emt 0:02:20]} 46. g4 {[%emt 0:01:01]} Rg1 {[%emt 0:02:25]} ({Don't blunder} 46... Rd1 $2 47. gxf5 Rg1 48. Nc8+ (48. Nxe4 gxf5 49. Ng3 Ng5+ 50. Kh4 Nf3+ 51. Kh5 Rg2 $18) (48. fxg6 Rg5 $18) 48... Kd8 49. Rxg6 Ng5+ 50. Kh4 Nf3+ 51. Kh5 $18) 47. gxf5 {[%emt 0:00:13]} Ng5+ {[%emt 0:02:49]} 48. Kh4 {[%emt 0:00:04]} Nf3+ {[%emt 0:00:04]} 49. Kh3 {[%emt 0:00:05] Strongly threatening Nc8+.} g5 {[%emt 0:01:56][%csl Gg1][%cal Rg5g4]} 50. f6+ $2 {[%emt 0:07:20][%mdl 8192] [#]} (50. Nxe4 $2 g4#) (50. Nc8+ $11 Kd7 51. Rg6 Kxc8 52. a6) 50... Kd7 $1 {[%emt 0:00:02][%csl Gg1][%cal Rg5g4] Black mates.} (50... Kxf6 51. Nxe4+ Ke5 52. Ng3 $16) 51. Rb7+ {[%emt 0:00:02]} Kxd6 {[%emt 0:00:07][%csl Gg1][%cal Rg5g4]} 52. Rg7 {[%emt 0:00:03]} Ne5 {[%emt 0:01:04]} 53. a6 {[%emt 0:01:28]} Nd3 {[%emt 0:01:47] Weighted Error Value: White=0.32/Black=0.11 (very precise) .  Loses game:     	White=1     	---        Mistake:       	White=3     	Black=4      Inaccurate:     	White=3     	Black=3      OK:         	White=17    	Black=17     Best:        	White=2     	Black=3      Strong:       	White=1     	Black=2} 0-1

[Event "Romanian Championship 2024"]
[Site "Eforie Nord"]
[Date "2024.02.24"]
[Round "1.7"]
[White "Magold, Filip"]
[Black "Mazilu, Stefan Fabian"]
[Result "1-0"]
[ECO "A30"]
[WhiteElo "2400"]
[BlackElo "2036"]
[Annotator "TA"]
[PlyCount "63"]
[EventDate "2024.02.24"]
[EventType "swiss"]
[EventCountry "ROU"]
[SourceTitle "playchess.com"]
[Source "ChessBase"]
[SourceQuality "1"]
[TimeControl "40/5400+30:900+30"]

{[%evp 10,63,35,40,39,4,33,31,31,23,44,9,54,11,20,19,22,43,30,43,50,45,56,62,73,40,94,79,71,82,119,59,60,58,84,62,69,35,53,0,204,187,160,169,261,170,158,192,212,202,200,181,158,93,29982,4086]} 1. c4 {[%emt 0:00:21]} Nf6 {[%emt 0:00:24]} 2. Nf3 {[%emt 0:00:25]} g6 {[%emt 0:00:21]} 3. b3 {[%emt 0:00:48]} Bg7 {[%emt 0:00:25]} 4. Bb2 {[%emt 0:00:09]} c5 {[%emt 0:05:02]} 5. g3 {[%emt 0:00:21]} Nc6 {[%emt 0:00:23]} 6. Bg2 {[%emt 0:00:15]} d6 {[%emt 0:01:27]} 7. d4 {[%emt 0:08:29]} cxd4 {[%emt 0:12:00]} 8. Nxd4 {[%emt 0:00:23][%cal Bf3d4,Bd4e2,Be2f4][%mdl 32]} Bd7 {[%emt 0:00:59] White is slightly better.} 9. O-O {[%emt 0:00:51]} Rc8 {[%emt 0:04:02]} 10. e3 {[%emt 0:09:20]} h5 {[%emt 0:05:31]} 11. h3 {[%emt 0:13:43]} a6 {[%emt 0:03:47]} 12. Nc3 {[%emt 0:05:40]} O-O {[%emt 0:14:32][%cal Oh5h4]} 13. Nde2 {[%emt 0:20:33]} Qa5 {[%emt 0:07:01]} 14. a4 {[%emt 0:04:10][%cal Ba2a4,Ba4a5][%mdl 32]} Qb6 {[%emt 0:02:00]} 15. Nf4 {[%emt 0:00:53]} Nb4 {[%emt 0:06:51]} 16. a5 {[%emt 0:04:27]} Qc7 {[%emt 0:02:22]} 17. Qd2 {[%emt 0:03:30]} Bc6 {[%emt 0:10:15]} (17... e5 $14) 18. e4 {[%emt 0:00:23]} b6 {[%emt 0:03:37]} 19. Ncd5 {[%emt 0:06:43]} Bxd5 {[%emt 0:01:02]} 20. exd5 {[%emt 0:04:48]} (20. axb6 $1 $16 Qxb6 21. exd5 (21. cxd5 Rc2 $17)) 20... bxa5 $14 {[%emt 0:00:21]} 21. Rfe1 {[%emt 0:00:08]} Rfe8 {[%emt 0:01:11][%cal Oh5h4]} 22. Re2 {[%emt 0:06:54][%mdl 1024] White has strong compensation. White is much more active.} Rb8 {[%emt 0:05:28]} 23. Bc3 {[%emt 0:02:22]} h4 {[%emt 0:04:03]} 24. g4 {[%emt 0:02:37]} (24. gxh4 Bh6 $11) (24. Bd4 $14) 24... g5 $2 {[%emt 0:01:40]} (24... Bh6 $1 $11 25. Bd4 Qd8) 25. Nh5 $1 $18 {[%emt 0:01:03]} Nxh5 {[%emt 0:01:21]} 26. gxh5 {[%emt 0:00:27] Black is weak on the light squares} (26. Qxg5 Nf6 $11 (26... Kf8 $2 27. Bxg7+ Nxg7 28. Qh6 $18)) 26... Bf6 {[%emt 0:01:36]} (26... Bxc3 $142 27. Qxc3 Rf8) 27. Kh1 {[%emt 0:01:50] f4 would now be deadly.} Qd7 {[%emt 0:04:33]} 28. f4 {[%emt 0:00:03]} g4 {[%emt 0:00:49]} (28... Bxc3 29. Qxc3 Qf5 30. fxg5 $18 (30. Rxa5 Qd3 $11)) 29. hxg4 {[%emt 0:02:21]} ({Don't do} 29. Rxa5 $6 gxh3 (29... Bxc3 30. Qxc3 Qf5 31. hxg4 $16) 30. Be4 (30. Bxb4 $2 hxg2+ 31. Rxg2+ Kh8 $19) 30... Qg4 (30... Bxc3 $2 31. Qxc3 Rf8 32. Ra1 $18)) 29... Qxg4 {[%emt 0:00:33]} 30. Rg1 {[%emt 0:00:35]} Kh8 {[%emt 0:00:46] [#]} ({Wrong is} 30... Bxc3 $2 31. Qxc3 $18) 31. Rxe7 {[%emt 0:00:28]} ({White should play} 31. h6 $1 {[%cal Oe2e7][%mdl 512] aiming for Rxe7!} Qf5 32. Rge1) 31... Qg7 $2 {[%emt 0:00:48][%mdl 8192] [#]} (31... Bxc3 $16 32. Qxc3+ Qg7 33. Qxg7+ Kxg7 34. Bf1+ Kf6) 32. h6 $1 {[%emt 0:00:21][%mdl 512] Weighted Error Value: White=0.22 (precise) /Black=0.45.  Loses game:     	---       	Black=2      Mistake:       	White=3     	Black=2      Inaccurate:     	White=5     	Black=4      OK:         	White=8     	Black=4      Best:        	---       	Black=2      Strong:       	White=1     	---        Brilliant:      	White=1     	---} 1-0

[Event "Romanian Championship 2024"]
[Site "Eforie Nord"]
[Date "2024.02.24"]
[Round "1.9"]
[White "Manolache, Marius"]
[Black "Andronescu, Madalin"]
[Result "1-0"]
[ECO "A45"]
[WhiteElo "2387"]
[BlackElo "2007"]
[Annotator "RC"]
[PlyCount "101"]
[EventDate "2024.02.24"]
[EventType "swiss"]
[EventCountry "ROU"]
[SourceTitle "playchess.com"]
[Source "ChessBase"]
[SourceQuality "1"]
[TimeControl "40/5400+30:900+30"]

1. d4 {[%emt 0:00:08]} Nf6 {[%emt 0:00:07]} 2. Bf4 {[%emt 0:00:29]} g6 {[%emt 0:00:20]} 3. Nc3 {[%emt 0:00:25]} c5 {[%emt 0:05:34]} 4. d5 {[%emt 0:05:55]} d6 {[%emt 0:00:22]} 5. e4 {[%emt 0:00:14]} Bg7 {[%emt 0:00:20]} 6. a4 {[%emt 0:01:40]} O-O {[%emt 0:01:30]} 7. Bc4 {[%emt 0:04:55]} Na6 {[%emt 0:10:28]} 8. Nge2 {[%emt 0:05:01]} Nc7 {[%emt 0:03:27]} 9. O-O {[%emt 0:00:46]} Rb8 {[%emt 0:01:02]} 10. Re1 {[%emt 0:00:34]} a6 {[%emt 0:01:01]} 11. a5 {[%emt 0:01:18]} b5 {[%emt 0:00:26]} 12. axb6 {[%emt 0:00:06]} Rxb6 {[%emt 0:00:04]} 13. Rb1 {[%emt 0:12:10]} e6 {[%emt 0:10:13]} 14. Qd2 {[%emt 0:16:51]} exd5 {[%emt 0:01:32]} 15. exd5 {[%emt 0:00:05]} Ng4 {[%emt 0:01:40]} 16. Bg5 {[%emt 0:16:02]} f6 {[%emt 0:11:17]} 17. Bf4 {[%emt 0:00:27]} Ne5 {[%emt 0:04:52]} 18. b3 {[%emt 0:01:57]} Rb4 {[%emt 0:03:44]} 19. Bxe5 {[%emt 0:01:07]} fxe5 {[%emt 0:00:08]} 20. Ne4 {[%emt 0:03:04]} Qh4 {[%emt 0:09:08]} 21. N2g3 {[%emt 0:01:21]} Bh6 {[%emt 0:05:05]} 22. Qe2 {[%emt 0:01:11]} Rb6 {[%emt 0:00:11]} 23. Nxc5 {[%emt 0:03:10]} dxc5 {[%emt 0:00:48]} 24. d6+ {[%emt 0:00:06]} Ne6 {[%emt 0:01:44]} 25. Qxe5 {[%emt 0:00:13]} Re8 {[%emt 0:00:37]} 26. Qxc5 {[%emt 0:02:03]} Qd8 {[%emt 0:00:40]} 27. Rbd1 {[%emt 0:08:30]} Bf8 {[%emt 0:00:47]} 28. Ne4 {[%emt 0:03:42]} Kh8 {[%emt 0:00:16]} 29. Qxc8 {[%emt 0:05:45]} Qxc8 {[%emt 0:01:34]} 30. d7 {[%emt 0:00:05]} Qb8 {[%emt 0:01:04]} 31. dxe8=Q {[%emt 0:01:02]} Qxe8 {[%emt 0:00:07]} 32. Ng5 {[%emt 0:00:08]} Rd6 {[%emt 0:04:57]} 33. Rxd6 {[%emt 0:00:11]} Bxd6 {[%emt 0:00:05]} 34. Rxe6 {[%emt 0:00:07]} Qd7 {[%emt 0:00:27]} 35. Rxd6 {[%emt 0:00:08]} Qe7 {[%emt 0:02:37]} 36. Rd8+ {[%emt 0:00:19]} Kg7 {[%emt 0:00:06]} 37. Ne6+ {[%emt 0:00:18]} Kf6 {[%emt 0:00:09]} 38. g3 {[%emt 0:02:18]} Qb4 {[%emt 0:00:41]} 39. Rd4 {[%emt 0:00:51]} Qc3 {[%emt 0:00:53]} 40. Rf4+ {[%emt 0:00:00]} Ke7 {[%emt 0:00:00]} 41. Nc7 {[%emt 0:01:29]} Qxc2 {[%emt 0:03:26]} 42. Nxa6 {[%emt 0:00:44]} g5 {[%emt 0:00:06]} 43. Rd4 {[%emt 0:00:53]} h5 {[%emt 0:01:31]} 44. Nb4 {[%emt 0:01:34]} Qb2 {[%emt 0:00:31]} 45. h4 {[%emt 0:01:19]} Qa3 {[%emt 0:04:29]} 46. Nc6+ {[%emt 0:00:21]} Kf6 {[%emt 0:00:06]} 47. hxg5+ {[%emt 0:00:19]} Kxg5 {[%emt 0:00:06]} 48. Rf4 {[%emt 0:00:42]} Qb2 {[%emt 0:02:20]} 49. Nd4 {[%emt 0:00:13]} Qc3 {[%emt 0:00:29]} 50. Kg2 {[%emt 0:00:34]} Kg6 {[%emt 0:01:14]} 51. Rh4 {[%emt 0:00:22]} 1-0

[Event "Romanian Championship 2024"]
[Site "Eforie Nord"]
[Date "2024.02.24"]
[Round "1.10"]
[White "Melinte, Rares-Andrei"]
[Black "Ognean, Mihnea-Ionut"]
[Result "0-1"]
[ECO "E11"]
[WhiteElo "1989"]
[BlackElo "2382"]
[Annotator "RC"]
[PlyCount "86"]
[EventDate "2024.02.24"]
[EventType "swiss"]
[EventCountry "ROU"]
[SourceTitle "playchess.com"]
[Source "ChessBase"]
[SourceQuality "1"]
[TimeControl "40/5400+30:900+30"]

1. d4 {[%emt 0:00:03]} Nf6 {[%emt 0:00:18]} 2. c4 {[%emt 0:00:16]} e6 {[%emt 0:00:26]} 3. g3 {[%emt 0:00:19]} d5 {[%emt 0:00:37]} 4. Nf3 {[%emt 0:00:32]} Bb4+ {[%emt 0:00:19]} 5. Bd2 {[%emt 0:00:11]} a5 {[%emt 0:00:11]} 6. Bg2 {[%emt 0:00:53]} O-O {[%emt 0:00:24]} 7. O-O {[%emt 0:01:20]} dxc4 {[%emt 0:00:14]} 8. Qc2 {[%emt 0:02:30]} Bxd2 {[%emt 0:01:00]} 9. Nbxd2 {[%emt 0:00:47]} b5 {[%emt 0:00:07]} 10. b3 {[%emt 0:06:15]} cxb3 {[%emt 0:02:09]} 11. Nxb3 {[%emt 0:00:59]} Bb7 {[%emt 0:01:15]} 12. Rfc1 {[%emt 0:02:29]} Bd5 {[%emt 0:00:48]} 13. Qxc7 {[%emt 0:03:46]} Qxc7 {[%emt 0:02:55]} 14. Rxc7 {[%emt 0:00:10]} Na6 {[%emt 0:00:15]} 15. Rcc1 {[%emt 0:01:35]} Nb4 {[%emt 0:35:38]} 16. Nfd2 {[%emt 0:08:27]} a4 {[%emt 0:06:24]} 17. Bxd5 {[%emt 0:05:04]} Nbxd5 {[%emt 0:01:57]} 18. Nc5 {[%emt 0:00:24]} b4 {[%emt 0:00:09]} 19. Rcb1 {[%emt 0:05:13]} Rfb8 {[%emt 0:04:30]} 20. Rb2 {[%emt 0:01:47]} Nc3 {[%emt 0:02:06]} 21. Nc4 {[%emt 0:08:57]} Nfd5 {[%emt 0:10:32]} 22. Kf1 {[%emt 0:05:06]} g5 {[%emt 0:05:21]} 23. Ne5 {[%emt 0:02:52]} Rb5 {[%emt 0:05:59]} 24. Rc1 {[%emt 0:03:13]} a3 {[%emt 0:01:26]} 25. Rd2 {[%emt 0:05:52]} Nxa2 {[%emt 0:00:08]} 26. Rxa2 {[%emt 0:03:28]} b3 {[%emt 0:00:03]} 27. Nxb3 {[%emt 0:01:14]} Rxb3 {[%emt 0:00:04]} 28. Nc4 {[%emt 0:01:36]} Nb4 {[%emt 0:02:16]} 29. Raa1 {[%emt 0:01:00]} a2 {[%emt 0:00:57]} 30. Ke1 {[%emt 0:01:14]} Nc2+ {[%emt 0:00:58]} 31. Rxc2 {[%emt 0:01:06]} Rb1+ {[%emt 0:00:03]} 32. Rc1 {[%emt 0:00:05]} Rxc1+ {[%emt 0:00:04]} 33. Rxc1 {[%emt 0:00:04]} a1=Q {[%emt 0:00:04]} 34. Rxa1 {[%emt 0:00:04]} Rxa1+ {[%emt 0:00:06]} 35. Kd2 {[%emt 0:00:12]} Rh1 {[%emt 0:00:04]} 36. Ne5 {[%emt 0:00:31]} Rxh2 {[%emt 0:01:41]} 37. Ke3 {[%emt 0:00:54]} Rh1 {[%emt 0:00:34]} 38. g4 {[%emt 0:01:15]} f6 {[%emt 0:01:49]} 39. Nd7 {[%emt 0:00:41]} Kf7 {[%emt 0:00:10]} 40. f3 {[%emt 0:00:00]} Ra1 {[%emt 0:00:00]} 41. Ke4 {[%emt 0:00:32]} Ke7 {[%emt 0:06:14]} 42. Nc5 {[%emt 0:00:22]} Ra3 {[%emt 0:00:45]} 43. e3 {[%emt 0:00:34]} h5 {[%emt 0:00:21]} 0-1

[Event "Romanian Championship 2024"]
[Site "Eforie Nord"]
[Date "2024.02.24"]
[Round "1.11"]
[White "Ilinca, Felix-Antonio"]
[Black "Dodoi, Matei-Teodor"]
[Result "1-0"]
[ECO "A11"]
[WhiteElo "2415"]
[BlackElo "1947"]
[Annotator "TA"]
[PlyCount "95"]
[EventDate "2024.02.24"]
[EventType "swiss"]
[EventCountry "ROU"]
[SourceTitle "playchess.com"]
[Source "ChessBase"]
[SourceQuality "1"]
[TimeControl "40/5400+30:900+30"]

{[%evp 14,95,27,20,24,-18,-12,-51,9,16,22,25,22,24,28,25,22,20,24,17,26,16,18,14,18,14,31,15,12,21,22,0,15,19,11,16,290,288,290,290,290,290,292,292,292,292,331,329,327,171,176,164,175,179,174,168,173,166,174,83,97,84,95,48,44,47,366,364,426,411,394,379,448,366,406,384,429,427,445,436,722,642,715,709]} 1. Nf3 {[%emt 0:00:08]} Nf6 {[%emt 0:00:11]} 2. g3 {[%emt 0:00:19]} g6 {[%emt 0:00:17]} 3. b3 {[%emt 0:00:29]} Bg7 {[%emt 0:01:01]} 4. Bb2 {[%emt 0:00:20]} d5 {[%emt 0:00:27]} 5. c4 {[%emt 0:00:33]} c6 {[%emt 0:00:12]} 6. Bg2 {[%emt 0:00:27]} O-O {[%emt 0:00:35]} 7. O-O {[%emt 0:00:29]} a5 {[%emt 0:02:38]} 8. d3 {[%emt 0:03:34]} Bg4 {[%emt 0:14:14]} 9. h3 {[%emt 0:07:22]} Bxf3 {[%emt 0:03:32]} 10. Bxf3 {[%emt 0:00:39]} Nbd7 {[%emt 0:00:17]} (10... d4 $15) 11. cxd5 $11 {[%emt 0:05:26]} cxd5 {[%emt 0:00:27]} 12. Nc3 {[%emt 0:01:38]} Ne5 {[%emt 0:09:38]} 13. Bg2 {[%emt 0:02:43]} Nc6 {[%emt 0:00:47]} 14. d4 {[%emt 0:02:16]} Qd6 {[%emt 0:09:55]} 15. e3 {[%emt 0:03:17]} Rab8 {[%emt 0:04:30]} 16. Qe2 {[%emt 0:07:12]} Rfc8 {[%emt 0:02:26]} 17. Rac1 {[%emt 0:01:47]} Na7 {[%emt 0:09:09]} 18. Rc2 {[%emt 0:05:19]} b5 {[%emt 0:09:38]} 19. Rfc1 {[%emt 0:02:13]} e6 {[%emt 0:04:29]} 20. Qd3 {[%emt 0:08:52][%cal Oc3b5]} Qd7 {[%emt 0:02:03]} 21. Bf1 {[%emt 0:05:54]} Bf8 {[%emt 0:06:20]} 22. a4 {[%emt 0:07:54]} bxa4 {[%emt 0:04:43]} 23. Nxa4 {[%emt 0:01:47]} Rxc2 {[%emt 0:02:18]} 24. Qxc2 {[%emt 0:03:57]} Rc8 $2 {[%emt 0:03:49][%mdl 8192] [#]} (24... h5 $11) 25. Nb6 $1 $18 {[%emt 0:03:05][%csl LRc8,LRd7]} Rxc2 {[%emt 0:03:12]} 26. Nxd7 {[%emt 0:00:07]} Rxb2 {[%emt 0:01:01]} 27. Nxf6+ {[%emt 0:00:11]} Kg7 {[%emt 0:01:30]} 28. Ne8+ {[%emt 0:00:12]} Kg8 {[%emt 0:02:19]} 29. Rc7 {[%emt 0:00:18]} Bb4 {[%emt 0:00:25][%cal Ob4e1]} 30. Rxa7 {[%emt 0:04:00]} Be1 {[%emt 0:00:18]} 31. Nf6+ {[%emt 0:03:35]} (31. Be2 $142) 31... Kg7 {[%emt 0:00:16]} 32. Ng4 {[%emt 0:01:15]} h5 {[%emt 0:01:31]} 33. Ne5 {[%emt 0:04:58]} Bxf2+ {[%emt 0:00:22]} 34. Kh1 {[%emt 0:00:13]} Bxe3 {[%emt 0:01:11]} 35. Rxf7+ {[%emt 0:00:35]} (35. Nxf7 Bxd4 36. Rc7 (36. Rxa5 $2 Kxf7 37. Ra3 Bc5 $19) 36... Kf6 $11) 35... Kg8 {[%emt 0:01:35]} 36. Rf6 {[%emt 0:02:46]} (36. Re7 $18) 36... Bxd4 $16 {[%emt 0:00:35]} 37. Rxg6+ {[%emt 0:00:12]} (37. Rxe6 $6 Rb1 38. Re8+ (38. Rxg6+ Kf8 $11) 38... Kg7 $11) 37... Kf8 {[%emt 0:00:20] [#]} 38. Nf3 {[%emt 0:02:10]} (38. Rxe6 $6 Rb1 $11) (38. Nc6 $1 $16 {[%cal Rc6d4]} Kf7 39. Rh6) 38... Kf7 $14 {[%emt 0:00:41]} 39. Rh6 {[%emt 0:02:08]} Bg7 {[%emt 0:00:30][%mdl 8192]} (39... Bf6 $14) 40. Ng5+ $18 {[%emt 0:00:00]} (40. Rxh5 Rxb3 41. Bg2 a4 $14) 40... Ke8 {[%emt 0:00:00]} 41. Bb5+ {[%emt 0:00:44]} (41. Rxh5 Rxb3 42. Nxe6 Rxg3 $18) 41... Kf8 {[%emt 0:01:20]} 42. Nxe6+ {[%emt 0:00:57]} ({Much less strong is} 42. Rxh5 Rxb3 43. Nxe6+ Kf7 44. Nxg7 Kxg7 45. Rxd5 Rxg3 $18) 42... Kf7 {[%emt 0:00:15]} 43. Ng5+ {[%emt 0:00:10]} ({Stronger than} 43. Rxh5 Kxe6 44. Bc6 d4 $11) 43... Kg8 {[%emt 0:00:36]} 44. Rg6 {[%emt 0:00:54]} ({Not} 44. Rxh5 Rxb3 45. Bc6 Rxg3 46. Bxd5+ Kf8 $18) 44... Rxb3 {[%emt 0:00:37]} 45. Bc6 {[%emt 0:00:27] White is clearly winning.} Rb1+ {[%emt 0:00:48]} 46. Kg2 {[%emt 0:00:10]} Kh8 {[%emt 0:00:27]} (46... Kf8 $142 47. Bxd5 Bc3) 47. Bxd5 {[%emt 0:00:16]} a4 {[%emt 0:00:26]} 48. Ra6 {[%emt 0:00:18] Weighted Error Value: White=0.19 (very precise) /Black=0.38.  Loses game:     	---       	Black=2      Mistake:       	White=3     	Black=2      Inaccurate:     	White=2     	---        OK:         	White=15    	Black=14     Best:        	White=5     	Black=7      Strong:       	White=1     	---} 1-0

[Event "Romanian Championship 2024"]
[Site "Eforie Nord"]
[Date "2024.02.24"]
[Round "1.12"]
[White "Samu, Sorin-Mihai"]
[Black "Secheres, Adrian-Simion"]
[Result "0-1"]
[ECO "C56"]
[WhiteElo "2004"]
[BlackElo "2371"]
[Annotator "TA"]
[PlyCount "54"]
[EventDate "2024.02.24"]
[EventType "swiss"]
[EventCountry "ROU"]
[SourceTitle "playchess.com"]
[Source "ChessBase"]
[SourceQuality "1"]
[TimeControl "40/5400+30:900+30"]

{[%evp 15,54,-25,-8,-70,-57,-89,-47,-81,-64,-92,-65,-67,-68,-81,-93,-220,-85,-78,-35,-44,-59,-198,-197,-187,-172,-502,-496,-548,-547,-553,-539,-532,-528,-513,-487,-1108,-1075,-1073,-1062,-1060,-1044]} 1. e4 {[%emt 0:00:02]} e5 {[%emt 0:00:12]} 2. Nf3 {[%emt 0:00:40]} Nc6 {[%emt 0:00:20]} 3. Bc4 {[%emt 0:00:23]} Nf6 {[%emt 0:00:28]} 4. d4 {[%emt 0:05:04]} exd4 {[%emt 0:00:24]} 5. e5 {[%emt 0:04:16]} d5 {[%emt 0:00:29]} 6. Bb5 {[%emt 0:02:32]} Ne4 {[%emt 0:00:28]} 7. Nxd4 {[%emt 0:02:19]} Bc5 {[%emt 0:01:59]} 8. O-O {[%emt 0:06:47]} O-O {[%emt 0:03:55][%csl LRd4,LRe5]} 9. Nxc6 {[%emt 0:03:52]} (9. Bxc6 $11 bxc6 10. Be3) 9... bxc6 $15 {[%emt 0:00:16]} 10. Bd3 {[%emt 0:03:24]} f5 {[%emt 0:04:51]} 11. c4 {[%emt 0:04:54] Black is slightly better.} Be6 {[%emt 0:04:38]} 12. Qe2 {[%emt 0:06:39]} Rb8 {[%emt 0:04:18]} 13. Nc3 {[%emt 0:03:19]} Bd4 {[%emt 0:06:20][%csl LRc3,LRe5] Black has more active pieces. The white rooks are passive.} 14. cxd5 {[%emt 0:03:25]} cxd5 {[%emt 0:01:12]} 15. Nb5 {[%emt 0:02:11]} (15. Bxe4 $17 fxe4 16. Be3 Bxe5 17. Bxa7) 15... Bb6 {[%emt 0:15:33]} (15... Bxe5 $19 {and Black stays clearly on top. aiming for ...c6.} 16. f3 Bd7 (16... Qh4 17. f4 $19)) 16. Be3 $17 {[%emt 0:07:18]} d4 {[%emt 0:08:41]} 17. Bf4 {[%emt 0:02:18][%cal Oa1d1]} Nc5 {[%emt 0:00:31]} 18. Bc4 {[%emt 0:05:01]} (18. Rac1 $15) 18... d3 $19 {[%emt 0:00:51]} 19. Bxe6+ {[%emt 0:00:41]} Nxe6 {[%emt 0:00:06]} 20. Qd2 {[%emt 0:00:44] [#]} (20. Qf3 {was the crucial defense.}) 20... g5 {[%emt 0:01:55] Black is clearly winning.} 21. Bg3 {[%emt 0:04:12]} f4 {[%emt 0:00:22]} 22. Nc3 {[%emt 0:00:21]} fxg3 {[%emt 0:01:05]} 23. hxg3 {[%emt 0:00:07]} Qd4 {[%emt 0:05:33] Repels Ne4} 24. Rae1 {[%emt 0:03:00]} Ba5 {[%emt 0:02:06][%cal Ob8b2]} 25. Re4 {[%emt 0:01:25]} (25. Re3 $142 Rbd8 26. a3) 25... Qxe4 {[%emt 0:00:33]} 26. Nxe4 {[%emt 0:00:07]} Bxd2 {[%emt 0:00:04]} 27. Nxd2 {[%emt 0:00:02]} Rxb2 {[%emt 0:00:15] Weighted Error Value: White=0.88/Black=0.19 (very precise) .  Mistake:       	White=4     	Black=1      Inaccurate:     	White=3     	Black=2      OK:         	White=4     	Black=4      Best:        	White=1     	Black=2} 0-1